fUST/lending_fUST_20260204
["ID","MTS","AMOUNT","RATE_DAILY","PERIOD"]
[404493500,1770214621032,-500.0,0.00054794,120]
[404493501,1770214621062,-5748.41,0.00054794,120]
[404493502,1770214621091,-462.51684028,0.00054794,120]
[404493503,1770214621118,-500.0,0.00054794,120]
[404493504,1770214621145,-500.0,0.00054794,120]
[404493505,1770214621172,-500.0,0.00054794,120]
[404493506,1770214621198,-500.0,0.00054794,120]
[404493507,1770214621227,-164.58621871,0.00054794,120]
[404493508,1770214621256,-516.38215267,0.00054794,120]
[404493509,1770214621284,-500.0,0.00054794,120]
[404493510,1770214621315,-558.63789552,0.00054794,120]
[404493511,1770214621343,-500.0,0.00054794,120]
[404493512,1770214621372,-557.04736182,0.00054794,120]
[404493513,1770214621403,-158.95062722,0.00054794,120]
[404493514,1770214621432,-500.0,0.00054794,120]
[404493515,1770214621460,-530.71838792,0.00054794,120]
[404493516,1770214621490,-510.7519942,0.00054794,120]
[404493517,1770214621520,-500.0,0.00054794,120]
[404493518,1770214621547,-500.0,0.00054794,120]
[404493519,1770214621576,-999.0,0.00054794,120]
[404493520,1770214621605,-500.0,0.00054794,55]
[404493521,1770214621632,-627.44,0.00054794,120]
[404493522,1770214621659,-552.073175,0.00054794,120]
[404493523,1770214621687,-500.0,0.00054794,120]
[404493524,1770214621714,-165.82222183,0.00054794,120]
[404493525,1770214621742,-816.49,0.00054794,120]
[404493526,1770214621771,-500.0,0.00054794,120]
[404493527,1770214621799,-506.47254762,0.00054794,120]
[404493528,1770214621826,-639.71473781,0.00054794,120]
[404493529,1770214621853,-367.12829343,0.00054794,120]
[404493530,1770214621879,-515.44987918,0.00054794,120]
[404493531,1770214621907,-507.19055344,0.00054794,120]
[404493532,1770214621933,-500.0,0.00054794,120]
[404493533,1770214621961,-553.71199073,0.00054794,120]
[404493534,1770214621987,-526.65932347,0.00054794,120]
[404493535,1770214622014,-539.77300585,0.00054794,120]
[404493536,1770214622040,-331.52747673,0.00054794,120]
[404493537,1770214622067,-512.75722107,0.00054794,120]
[404493538,1770214622094,-500.0,0.00054794,120]
[404493539,1770214622122,-497.5392104,0.00054794,120]
[404493540,1770214622149,-493.84669874,0.00054794,120]
[404493541,1770214622176,-623.4638563,0.00054794,120]
[404493542,1770214622202,-500.0,0.00054794,120]
[404493543,1770214622229,-500.0,0.00054794,120]
[404493544,1770214622355,-185.98786279,0.00054794,120]
[404493545,1770214622388,-505.26252234,0.00054794,120]
[404493546,1770214622418,-500.0,0.00054794,120]
[404493547,1770214622448,-160.6491432,0.00054794,120]
[404493548,1770214622479,-500.0,0.00054794,120]
[404493549,1770214622506,-546.76568986,0.00054794,120]
[404493550,1770214622535,-500.0,0.00054794,120]
[404493551,1770214622563,-500.0,0.00054794,120]
[404493552,1770214622591,-1000.0,0.00054794,120]
[404493553,1770214622619,-500.0,0.00054794,120]
[404493554,1770214622649,-500.0,0.00054794,120]
[404493555,1770214622679,-531.31918286,0.00054794,120]
[404493556,1770214622707,-570.58715301,0.00054794,120]
[404493557,1770214622737,-510.66724325,0.00054794,120]
[404493558,1770214622767,-580.16166446,0.00054794,120]
[404493559,1770214622796,-500.0,0.00054794,120]
[404493560,1770214622824,-554.20898101,0.00054794,120]
[404493561,1770214622852,-517.13733243,0.00054794,120]
[404493562,1770214622879,-500.0,0.00054794,120]
[404493563,1770214622908,-500.0,0.00054794,120]
[404493564,1770214622937,-540.43232345,0.00054794,120]
[404493565,1770214622964,-644.48395965,0.00054794,120]
[404493566,1770214622993,-500.0,0.00054794,120]
[404493567,1770214623021,-193.05153406,0.00054794,120]
[404493568,1770214623050,-363.29119794,0.00054794,120]
[404493569,1770214623078,-531.99090921,0.00054794,120]
[404493570,1770214623106,-500.0,0.00054794,120]
[404493571,1770214623133,-519.1899973,0.00054794,120]
[404493572,1770214623160,-468.06439785,0.00054794,120]
[404493573,1770214623189,-13317.3,0.00054794,90]
[404493574,1770214623219,-500.0,0.00054794,120]
[404493575,1770214623248,-500.0,0.00054794,120]
[404493576,1770214623278,-248.69157869,0.00054794,120]
[404493577,1770214623306,-512.65785153,0.00054794,120]
[404493578,1770214623361,-150.43130423,0.00054794,120]
[404493579,1770214623413,-588.33514309,0.00054794,120]
[404493580,1770214623469,-500.0,0.00054794,120]
[404493581,1770214623524,-530.33496509,0.00054794,120]
[404493582,1770214623579,-166.59438354,0.00054794,120]
[404493583,1770214623633,-600.72960134,0.00054794,120]
[404493584,1770214623689,-452.56413557,0.00054794,120]
[404493585,1770214623743,-549.5381887,0.00054794,120]
[404493586,1770214623798,-500.0,0.00054794,120]
[404493587,1770214623853,-150.0,0.00054794,120]
[404493588,1770214623912,-503.17380279,0.00054794,120]
[404493589,1770214623972,-556.01694621,0.00054794,120]
[404493590,1770214624024,-500.0,0.00054794,120]
[404493591,1770214624073,-511.75361726,0.00054794,120]
[404493592,1770214624125,-950.16,0.00054794,120]
[404493593,1770214624174,-269.10681494,0.00054794,120]
[404493594,1770214624223,-1901.72,0.00054794,120]
[404493595,1770214624276,-582.6084832,0.00054794,120]
[404493596,1770214624328,-537.92356739,0.00054794,120]
[404493597,1770214624383,-500.0,0.00054794,120]
[404493598,1770214624439,-551.24098873,0.00054794,120]
[404493599,1770214624492,-500.0,0.00054794,120]
[404493600,1770214624545,-514.76124427,0.00054794,120]
[404493601,1770214624597,-565.78609364,0.00054794,120]
[404493602,1770214624650,-404.55165375,0.00054794,120]
[404493603,1770214624703,-545.58288384,0.00054794,120]
[404493604,1770214624754,-500.0,0.00054794,120]
[404493605,1770214624806,-525.72620591,0.00054794,120]
[404493606,1770214624859,-500.0,0.00054794,120]
[404493607,1770214624912,-500.0,0.00054794,120]
[404493608,1770214624981,-500.0,0.00054794,120]
[404493609,1770214625040,-179.89586092,0.00054794,120]
[404493610,1770214625094,-642.23062363,0.00054794,120]
[404493611,1770214625149,-648.56600822,0.00054794,120]
[404493612,1770214625203,-640.87617097,0.00054794,120]
[404493613,1770214625260,-275.81997197,0.00054794,120]
[404493614,1770214625314,-492.18046689,0.00054794,120]
[404493615,1770214625370,-511.67864257,0.00054794,120]
[404493616,1770214625429,-229.85718734,0.00054794,120]
[404493617,1770214625483,-605.73,0.00054794,120]
[404493618,1770214625540,-518.00006135,0.00054794,120]
[404493619,1770214625597,-1460.41,0.00054794,120]
[404493620,1770214625652,-519.03159421,0.00054794,120]
[404493621,1770214625713,-517.26561787,0.00054794,120]
[404493622,1770214625777,-500.0,0.00054794,120]
[404493623,1770214625939,-535.53084385,0.00054794,120]
[404493624,1770214625999,-446.29491241,0.00054794,120]
[404493625,1770214626060,-844.78,0.00054794,120]
[404493626,1770214626113,-500.0,0.00054794,31]
[404493627,1770214626164,-178.62013119,0.00054794,120]
[404493628,1770214626222,-1363.26,0.00054794,30]
[404493629,1770214626277,-511.2979284,0.00054794,120]
[404493630,1770214626336,-425.70049572,0.00054794,120]
[404493631,1770214626396,-545.01394497,0.00054794,120]
[404493632,1770214626450,-500.0,0.00054794,120]
[404493633,1770214626506,-524.25768067,0.00054794,120]
[404493634,1770214626559,-500.0,0.00054794,120]
[404493635,1770214626609,-581.12420935,0.00054794,120]
[404493636,1770214626661,-500.0,0.00054794,120]
[404493637,1770214626714,-504.90032167,0.00054794,120]
[404493638,1770214626767,-599.58435241,0.00054794,120]
[404493639,1770214626822,-500.0,0.00054794,120]
[404493640,1770214626876,-355.03421094,0.00054794,120]
[404493641,1770214626928,-984.89,0.00054794,120]
[404493642,1770214626981,-500.0,0.00054794,120]
[404493643,1770214627034,-584.20672397,0.00054794,120]
[404493644,1770214627086,-500.0,0.00054794,120]
[404493645,1770214627141,-599.61946645,0.00054794,120]
[404493646,1770214627193,-565.76591911,0.00054794,120]
[404493647,1770214627244,-500.0,0.00054794,120]
[404493648,1770214627297,-198.07198566,0.00054794,120]
[404493649,1770214627347,-500.0,0.00054794,120]
[404493650,1770214627400,-500.0,0.00054794,120]
[404493651,1770214627463,-517.34250249,0.00054794,120]
[404493652,1770214627519,-751.54,0.00054794,120]
[404493653,1770214627577,-598.48799706,0.00054794,120]
[404493654,1770214627636,-2081.25,0.00054794,120]
[404493655,1770214627692,-570.25469329,0.00054794,120]
[404493656,1770214627747,-531.8645273,0.00054794,120]
[404493657,1770214627805,-585.76133149,0.00054794,120]
[404493658,1770214627864,-603.56863107,0.00054794,120]
[404493659,1770214627920,-2143.24,0.00054794,21]
[404493660,1770214627981,-500.0,0.00054794,120]
[404493661,1770214628039,-500.0,0.00054794,120]
[404493662,1770214628103,-500.0,0.00054794,120]
[404493663,1770214628166,-500.0,0.00054794,120]
[404493664,1770214628228,-500.0,0.00054794,120]
[404493665,1770214628286,-500.0,0.00054794,120]
[404493666,1770214628351,-500.0,0.00054794,120]
[404493667,1770214628416,-500.0,0.00054794,120]
[404493668,1770214628476,-500.0,0.00054794,120]
[404493669,1770214628537,-639.64714639,0.00054794,120]
[404493670,1770214628598,-500.0,0.00054794,120]
[404493671,1770214628658,-500.0,0.00054794,120]
[404493672,1770214628716,-500.0,0.00054794,120]
[404493673,1770214628774,-500.0,0.00054794,120]
[404493674,1770214628835,-500.0,0.00054794,120]
[404493675,1770214628895,-500.0,0.00054794,120]
[404493676,1770214628951,-500.0,0.00054794,120]
[404493677,1770214629012,-1340.18,0.00054794,120]
[404493678,1770214629068,-500.0,0.00054794,120]
[404493679,1770214629124,-500.0,0.00054794,120]
[404493680,1770214629176,-573.45322226,0.00054794,120]
[404493681,1770214629233,-500.0,0.00054794,120]
[404493682,1770214629289,-500.0,0.00054794,120]
[404493683,1770214629343,-500.0,0.00054794,120]
[404493684,1770214629398,-500.0,0.00054794,120]
[404493685,1770214629456,-500.0,0.00054794,120]
[404493686,1770214629519,-500.0,0.00054794,120]
[404493687,1770214629576,-500.0,0.00054794,120]
[404493688,1770214629636,-500.0,0.00054794,120]
[404493689,1770214629696,-315.11436471,0.00054794,120]
[404493690,1770214629757,-500.0,0.00054794,120]
[404493691,1770214630117,299.37,0.00032877,10]
[404493692,1770214630156,9849.01,0.000125,2]
[404493693,1770214630182,150.99,0.000125,2]
[404493694,1770214630208,9849.02,0.000126,2]
[404493695,1770214630230,150.98,0.000126,2]
[404493696,1770214630257,5622.68,0.000127,2]
[404493697,1770214630367,300.0,0.00012599,2]
[404493698,1770214661338,1434.46,0.000125,2]
[404493703,1770215007596,2491.89,0.00013,2]
[404493704,1770215007618,2508.11,0.00013,2]
[404493705,1770215030318,5000.0,0.00013,2]
[404493706,1770215076635,2491.9,0.0001,2]
[404493707,1770215076656,10000.01,0.0001,2]
[404493708,1770215076676,10000.01,0.0001,2]
[404493709,1770215076697,10000.01,0.0001,2]
[404493710,1770215076718,10000.01,0.0001,2]
[404493711,1770215076739,10000.01,0.0001,2]
[404493712,1770215076759,10000.01,0.0001,2]
[404493713,1770215076780,10000.01,0.0001,2]
[404493714,1770215076801,10000.01,0.0001,2]
[404493715,1770215076821,10000.01,0.0001,2]
[404493716,1770215076843,10000.01,0.0001,2]
[404493717,1770215076865,7544.29,0.0001,2]
[404493720,1770215181735,1180.01900936,0.00012999,2]
[404493721,1770215244194,1275.70099064,0.00012648,2]
[404493722,1770215244217,8892.81758866,0.00012648,2]
[404493765,1770215432276,-150.0,0.00013159,2]
[404493767,1770215432286,-171.0,0.00013167,2]
[404493769,1770215432295,-300.0,0.00013266,2]
[404493771,1770215432303,-502.02642622,0.00013266,2]
[404493773,1770215432315,-438.97357378,0.00013266,2]
[404493775,1770215432324,-500.0,0.00013273,2]
[404493777,1770215432333,-67.38537387,0.00013273,2]
[404493779,1770215432344,-113.4461135,0.00013273,2]
[404493781,1770215432353,-500.0,0.00013273,2]
[404493783,1770215432362,-104.02701138,0.00013273,2]
[404493788,1770215432411,-389.74702587,0.00013272,2]
[404493790,1770215432420,-500.0,0.00013272,2]
[404493792,1770215432429,-321.67651828,0.00013272,2]
[404493814,1770215438448,-16753.16564218,0.00013272,2]
[404493815,1770215438459,-639.58936963,0.00013272,2]
[404493816,1770215438471,-6177.99002886,0.00013272,2]
[404493817,1770215438483,-6031.93568319,0.00013272,2]
[404494847,1770215456289,-899.02450081,0.00013272,2]
[404494848,1770215456300,-944.68181726,0.00013272,2]
[404494849,1770215457310,-2575.88996176,0.00013272,2]
[404494850,1770215457321,-15977.72299631,0.00013272,2]
[404494851,1770215457330,-178.32348172,0.00013272,2]
[404494852,1770215457341,-500.0,0.00013272,2]
[404494853,1770215457350,-500.0,0.00013272,2]
[404494854,1770215457360,-500.0,0.00013272,2]
[404494855,1770215457370,-500.0,0.00013272,2]
[404494856,1770215457379,-500.0,0.00013272,2]
[404494857,1770215457388,-500.0,0.00013272,2]
[404494858,1770215457397,-500.0,0.00013272,2]
[404494859,1770215457406,-500.0,0.00013272,2]
[404494860,1770215457415,-371.6233599,0.00013272,2]
[404494861,1770215457425,-500.0,0.00013272,2]
[404494862,1770215457434,-547.77636317,0.00013272,2]
[404494863,1770215457444,-500.0,0.00013272,2]
[404494864,1770215457454,-500.0,0.00013272,2]
[404494865,1770215457463,-250.0,0.00013272,2]
[404494866,1770215457472,-315.15567878,0.00013272,2]
[404494867,1770215457484,-500.0,0.00013272,2]
[404494868,1770215457494,-395.97298862,0.00013273,2]
[404494869,1770215457503,-500.0,0.00013273,2]
[404494870,1770215457513,-500.0,0.00013273,2]
[404494871,1770215457522,-500.0,0.00013273,2]
[404494872,1770215457533,-500.0,0.00013273,2]
[404494873,1770215457542,-168.0468108,0.00013273,2]
[404494874,1770215457551,-500.0,0.00013273,2]
[404494875,1770215457560,-500.0,0.00013273,2]
[404494876,1770215457569,-500.0,0.00013273,2]
[404494877,1770215457578,-500.0,0.00013273,2]
[404494878,1770215457588,-217.7771476,0.00013273,2]
[404494879,1770215457597,-482.46412445,0.00013273,2]
[404494880,1770215457608,-500.0,0.00013273,2]
[404494881,1770215457621,-396.90119587,0.00013273,2]
[404494882,1770215457633,-500.0,0.00013273,2]
[404494883,1770215457643,-500.0,0.00013273,2]
[404494884,1770215457653,-500.0,0.00013273,2]
[404494885,1770215457662,-500.0,0.00013273,2]
[404494886,1770215457672,-336.23725898,0.00013273,2]
[404494887,1770215457681,-500.0,0.00013273,2]
[404494888,1770215457691,-507.3792008,0.000135,2]
[404494889,1770215457701,-600.0,0.00013537,2]
[404494890,1770215457710,-181.22680502,0.00013599,2]
[404494891,1770215457721,-150.90510798,0.00013673,2]
[404494892,1770215457734,-300.0,0.00013673,2]
[404494893,1770215457743,-500.0,0.00013698,2]
[404494894,1770215457841,-500.0,0.00013698,2]
[404494895,1770215457852,-500.0,0.00013698,2]
[404494896,1770215457862,-742.048998,0.00013699,2]
[404494897,1770215457871,-1000.0,0.00013699,2]
[404494898,1770215457880,-228.19698272,0.00013699,2]
[404494899,1770215457890,-500.0,0.00013699,2]
[404494900,1770215457899,-500.0,0.00013699,2]
[404494901,1770215457908,-500.0,0.00013699,2]
[404494902,1770215457918,-500.0,0.00013699,2]
[404494903,1770215457927,-161.13981659,0.00013699,2]
[404494904,1770215457936,-500.56709487,0.00013699,2]
[404494905,1770215457945,-500.0,0.00013699,2]
[404494906,1770215457955,-500.0,0.00013699,2]
[404494907,1770215457964,-500.0,0.00013699,2]
[404494908,1770215457973,-602.95161427,0.00013699,2]
[404494909,1770215457983,-500.0,0.00013699,2]
[404494910,1770215457992,-147.09803383,0.00013699,2]
[404494911,1770215458004,-352.90196617,0.00013699,2]
[404494912,1770215458013,-501.01127403,0.00013699,2]
[404494913,1770215458022,-467.013014,0.00013699,2]
[404494914,1770215469368,-500.0,0.00013273,2]
[404494915,1770215469398,-300.0,0.00013698,2]
[404494916,1770215469430,-32.986986,0.00013699,2]
[404494917,1770215469459,-589.83067656,0.00013699,2]
[404494918,1770215469487,-500.0,0.00013699,2]
[404494919,1770215469514,-500.0,0.00013699,2]
[404494920,1770215469535,-500.0,0.00013699,2]
[404494921,1770215469546,-300.0,0.00013699,2]
[404494922,1770215469557,-32.986986,0.00013699,2]
[404494923,1770215469572,-167.013014,0.00013699,2]
[404494924,1770215469594,-422.81766256,0.00013699,2]
[404494925,1770215469604,-77.18233744,0.00013699,2]
[404494926,1770215469615,-422.81766256,0.00013699,2]
[404494927,1770215469629,-77.18233744,0.00013699,2]
[404494928,1770215469643,-422.81766256,0.00013699,2]
[404494929,1770215469656,-77.18233744,0.00013699,2]
[404494930,1770215469666,-263.65250771,0.00013699,2]
[404494932,1770215699711,5000.0,0.00013,2]
[404494933,1770215890250,-300.0,0.00013171,2]
[404494934,1770215890278,-9484.90072882,0.00013172,2]
[404494935,1770215890299,-215.09927118,0.00013172,2]
[404494936,1770215894456,-9269.80145764,0.00013172,2]
[404494937,1770215894477,-150.0,0.00013206,2]
[404494938,1770215894498,-580.19854236,0.00013272,2]
[404494939,1770215896003,-10000.0,0.00013272,2]
[404494940,1770215897337,-10000.0,0.00013272,2]
[404494941,1770215898317,-10000.0,0.00013272,2]
[404494942,1770215899369,-4267.72852579,0.00013272,2]
[404494943,1770215899390,-215.6242257,0.00013272,2]
[404494944,1770215899411,-500.0,0.00013272,2]
[404494945,1770215899431,-500.0,0.00013272,2]
[404494946,1770215899458,-500.0,0.00013272,2]
[404494947,1770215899488,-500.0,0.00013272,2]
[404494948,1770215899513,-500.0,0.00013272,2]
[404494949,1770215899536,-500.0,0.00013272,2]
[404494950,1770215899557,-250.0,0.00013272,2]
[404494951,1770215899581,-500.0,0.00013272,2]
[404494952,1770215899604,-500.0,0.00013272,2]
[404494953,1770215899626,-500.0,0.00013272,2]
[404494954,1770215899649,-500.0,0.00013272,2]
[404494955,1770215899674,-266.64724851,0.00013272,2]
[404494956,1770215900992,-315.46724494,0.00013272,2]
[404494957,1770215901020,-597.77636317,0.00013272,2]
[404494958,1770215901042,-500.0,0.00013272,2]
[404494959,1770215901065,-500.0,0.00013272,2]
[404494960,1770215901086,-315.15567878,0.00013272,2]
[404494961,1770215901106,-339.92501183,0.00013273,2]
[404494962,1770215901127,-500.0,0.00013273,2]
[404494963,1770215901146,-500.0,0.00013273,2]
[404494964,1770215901167,-500.0,0.00013273,2]
[404494965,1770215901186,-500.0,0.00013273,2]
[404494966,1770215901205,-500.0,0.00013273,2]
[404494967,1770215901225,-482.46412445,0.00013273,2]
[404494968,1770215901244,-396.90119587,0.00013273,2]
[404494969,1770215901268,-500.0,0.00013273,2]
[404494970,1770215901288,-500.0,0.00013273,2]
[404494971,1770215901312,-500.0,0.00013273,2]
[404494972,1770215901332,-500.0,0.00013273,2]
[404494973,1770215901351,-500.0,0.00013273,2]
[404494974,1770215901370,-336.23725898,0.00013273,2]
[404494975,1770215901389,-500.0,0.00013273,2]
[404494976,1770215901408,-300.0,0.00013427,2]
[404494977,1770215901430,-416.07312198,0.00013432,2]
[404494978,1770215911401,-3000.0,0.00013432,2]
[404494979,1770215934594,-257.23951986,0.00013431,2]
[404494980,1770215934619,-233.08626258,0.00013431,2]
[404494981,1770215934644,-231.34605483,0.00013431,2]
[404494982,1770215934665,-9278.32816273,0.00013432,2]
[404494983,1770215936713,-150.0,0.00013434,2]
[404494984,1770215936734,-181.22680502,0.00013436,2]
[404494985,1770215936756,-300.0,0.00013536,2]
[404494986,1770215936780,-300.0,0.00013536,2]
[404494987,1770215936807,-286.70935195,0.00013584,2]
[404494988,1770215936835,-150.90510798,0.00013673,2]
[404494989,1770215936864,-300.0,0.00013673,2]
[404494990,1770215936885,-228.19698272,0.00013699,2]
[404494991,1770215936905,-500.0,0.00013699,2]
[404494992,1770215936924,-500.0,0.00013699,2]
[404494993,1770215936943,-500.0,0.00013699,2]
[404494994,1770215936963,-500.0,0.00013699,2]
[404494995,1770215936983,-500.0,0.00013699,2]
[404494996,1770215937002,-500.0,0.00013699,2]
[404494997,1770215937021,-236.34749229,0.00013699,2]
[404494998,1770215937043,-500.82078053,0.00013699,2]
[404494999,1770215937062,-1000.0,0.00013821,2]
[404495000,1770215937081,-1000.0,0.00013821,2]
[404495001,1770215937100,-1000.0,0.00013821,2]
[404495002,1770215937120,-1000.0,0.00013821,2]
[404495003,1770215937140,-365.79347951,0.00013821,2]
[404495004,1770215938814,-10000.0,0.00013653,2]
[404495005,1770215942135,-10000.0,0.00013653,2]
[404495006,1770215949209,-500.0,0.00013273,2]
[404495007,1770215949231,-500.0,0.00013273,2]
[404495008,1770215949252,-2500.0,0.0001365,2]
[404495011,1770216038230,3077.92127906,0.00013,2]
[404495012,1770216145429,1922.08872094,0.00012864,2]
[404495013,1770216145454,1107.19241134,0.00012864,2]
[404495014,1770216145476,3132.22287702,0.00012864,2]
[404495015,1770216261235,151.0,0.00039836,120]
[404495016,1770216261526,155.082628,0.00039836,120]
[404495017,1770216298741,151.0,0.00039836,120]
[404495018,1770216299053,151.0,0.00039836,120]
[404495019,1770216299354,171.580447,0.00039836,120]
[404495114,1770216641450,-300.0,0.00013272,2]
[404495115,1770216641460,-530.0,0.00013272,2]
[404495116,1770216641470,-150.0,0.00013272,2]
[404495117,1770216641480,-500.0,0.00013273,2]
[404495118,1770216641489,-217.7771476,0.00013273,2]
[404495119,1770216641498,-500.0,0.00013273,2]
[404495120,1770216641507,-500.0,0.00013273,2]
[404495121,1770216641517,-500.0,0.00013273,2]
[404495122,1770216641526,-500.0,0.00013273,2]
[404495123,1770216641535,-86.31061721,0.00013273,2]
[404495153,1770216646912,-413.68938279,0.00013273,2]
[404495154,1770216646922,-500.0,0.00013273,2]
[404495155,1770216646931,-168.0468108,0.00013273,2]
[404495156,1770216646941,-500.0,0.00013273,2]
[404495157,1770216646950,-500.0,0.00013273,2]
[404495158,1770216646960,-500.0,0.00013273,2]
[404495159,1770216646973,-500.0,0.00013273,2]
[404495160,1770216646982,-500.0,0.00013273,2]
[404495161,1770216646992,-500.0,0.00013273,2]
[404495162,1770216647002,-500.0,0.00013273,2]
[404495163,1770216647012,-500.0,0.00013273,2]
[404495164,1770216647021,-500.0,0.00013273,2]
[404495165,1770216647030,-500.0,0.00013273,2]
[404495166,1770216647041,-237.97693174,0.00013273,2]
[404495167,1770216647052,-500.0,0.00013273,2]
[404495168,1770216647062,-500.0,0.00013273,2]
[404495169,1770216647072,-129.35849125,0.00013273,2]
[404495170,1770216651458,462.67,0.00012329,2]
[404495171,1770216661911,385.55,0.00012329,2]
[404495172,1770216672322,321.3,0.00012329,2]
[404495173,1770216682712,267.75,0.00012329,2]
[404495174,1770216693292,223.12,0.00012329,2]
[404495175,1770216704469,185.93,0.00012329,2]
[404495176,1770216715133,383.231696,0.00039835,120]
[404495177,1770216715559,383.231696,0.00039835,120]
[404495178,1770216715890,383.231696,0.00039835,120]
[404495179,1770216716202,383.231696,0.00039835,120]
[404495180,1770216716840,383.231696,0.00039835,120]
[404495181,1770216717144,383.231696,0.00039835,120]
[404495182,1770216717443,383.231696,0.00039835,120]
[404495183,1770216717866,383.231696,0.00039835,120]
[404495184,1770216718193,383.231696,0.00039835,120]
[404495185,1770216718501,383.231696,0.00039835,120]
[404495186,1770216718848,383.231696,0.00039835,120]
[404495187,1770216719148,383.231696,0.00039835,120]
[404495188,1770216719526,383.231696,0.00039835,120]
[404495189,1770216719865,383.231696,0.00039835,120]
[404495190,1770216720211,383.231696,0.00039835,120]
[404495191,1770216720541,383.231696,0.00039835,120]
[404495192,1770216720882,383.231696,0.00039835,120]
[404495193,1770216721273,383.231696,0.00039835,120]
[404495194,1770216721617,383.231696,0.00039835,120]
[404495195,1770216721981,383.231689,0.00039835,120]
[404495196,1770216725484,154.95,0.00012329,2]
[404495197,1770216735901,774.75,0.00012329,2]
[404495198,1770216754075,164.139323,0.00039835,30]
[404495199,1770216817422,500.0,0.00039835,30]
[404495200,1770216817790,500.0,0.00039835,30]
[404495201,1770216818020,500.0,0.00039835,30]
[404495202,1770216818336,500.0,0.00039835,30]
[404495203,1770216818987,500.0,0.00039835,30]
[404495204,1770216819260,500.0,0.00039835,30]
[404495205,1770216819556,500.0,0.00039835,30]
[404495206,1770216819872,500.0,0.00039835,30]
[404495207,1770216820166,500.0,0.00039835,30]
[404495208,1770216820469,500.0,0.00039835,30]
[404495209,1770216820814,500.0,0.00039835,30]
[404495210,1770216821108,500.0,0.00039835,30]
[404495211,1770216821402,500.0,0.00039835,30]
[404495212,1770216821693,500.0,0.00039835,30]
[404495213,1770216822311,500.0,0.00039835,30]
[404495214,1770216822600,500.0,0.00039835,30]
[404495215,1770216822913,500.0,0.00039835,30]
[404495216,1770216823253,500.0,0.00039835,30]
[404495217,1770216823580,500.0,0.00039835,30]
[404495218,1770216823876,500.0,0.00039835,30]
[404495219,1770216886877,250.0,0.00039835,120]
[404495220,1770216903071,4091.76712298,0.0001254,2]
[404495221,1770216903096,4877.91085102,0.0001254,2]
[404495222,1770216909720,250.0,0.00039835,120]
[404495223,1770216935368,269.0,0.00030137,120]
[404495224,1770216945681,250.0,0.00039835,120]
[404495225,1770216983490,250.0,0.00039835,120]
[404495226,1770217101211,217.8385552,0.00012554,2]
[404495227,1770217262695,-936.8106297,0.00013139,2]
[404495228,1770217292196,-136.8106297,0.00013139,2]
[404495229,1770217296460,300.0,0.00013816,120]
[404495232,1770217419077,68007.6,0.00039835,20]
[404495233,1770217426197,484.77487186,0.00012999,2]
[404495234,1770217476517,151.0,0.00039835,120]
[404495235,1770217476861,151.0,0.00039835,120]
[404495236,1770217477155,151.0,0.00039835,120]
[404495237,1770217477445,151.0,0.00039835,120]
[404495238,1770217477731,151.0,0.00039835,120]
[404495239,1770217478015,151.0,0.00039835,120]
[404495240,1770217478323,151.0,0.00039835,120]